Cogmind - Beta 17 @@@ ROGUE MODE // 2026.06.23 @ 22:13:24 Player: Gitida Result: Destroyed by QI-OY1(R) with Subdweller Shrapnel Launcher Performance ------------- Evolutions (0) 0 Regions Visited (2) 400 Robots Destroyed (21) 105 Value Destroyed (777) 777 Prototype IDs (3) 60 Alien Tech Used (0) 0 Bonus (5000) 5000 TOTAL SCORE: 6342 Bonus ------- Prayed to X0-1V1 5000 Cogmind --------- Core Integrity 0/250 Matter 213/300 Energy 98/100 System Corruption 0% Temperature Cool (0) Movement Core (450) Ox8 Location -10/Subcaves Parts ------- > --- POWER (1) -------- (None) > --- PROPULSION (2) --- (None) > --- UTILITY (2) ------ Large Storage Unit X0-1V1's Piety Tracker > --- WEAPON (2) ------- Medium Laser Light Cannon > --- INVENTORY (15) --- Ion Engine Ion Engine Heat Sink Heat Sink High-capacity Storage Unit Large Matter Pod (150) Sensor Array Signal Interpreter ECM Suite Scrap Shield Peak State ------------ > --- POWER ------------ (None) > --- PROPULSION ------- (None) > --- UTILITY ---------- Large Storage Unit X0-1V1's Piety Tracker > --- WEAPON ----------- EM Pulse Gun Medium Laser > --- INVENTORY -------- Ion Engine Ion Engine Heat Sink Heat Sink High-capacity Storage Unit Large Matter Pod Sensor Array Signal Interpreter ECM Suite Scrap Shield Light Cannon [Rating: 17] Favorites ----------- Power Ion Engine Engine Ion Engine Propulsion Light Treads Treads Light Treads Leg Aluminum Leg Utility Large Storage Unit Device X0-1V1's Piety Tracker Storage Large Storage Unit Protection Weapon Shielding Weapon EM Pulse Gun Energy Gun EM Pulse Gun Ballistic Cannon Light Cannon Build | -11 -10 -10 ------- Run | Yrd Mat Sub Slots Evolved . | . . . Power . | . . . Propulsion . | . . . Utility . | . . . Weapon . | . . . Parts Attached 18 | 5 9 4 Power 3 | 1 2 . Engine 3 | 1 2 . Core . | . . . Reactor . | . . . Propulsion 4 | 2 2 . Treads 2 | . 2 . Leg 2 | 2 . . Wheel . | . . . Hover . | . . . Flight . | . . . Utility 4 | . 3 1 Device 1 | . . 1 Storage 2 | . 2 . Processor . | . . . Hackware . | . . . Protection 1 | . 1 . Artifact . | . . . Weapon 7 | 2 2 3 Energy Gun 5 | 2 1 2 Energy Cannon . | . . . Ballistic Gun . | . . . Ballistic Cannon 2 | . 1 1 Launcher . | . . . Special Weapon . | . . . Impact Weapon . | . . . Slashing Weapon . | . . . Piercing Weapon . | . . . Special Melee Weapon . | . . . Unidentified Prototypes 1 | . . 1 Parts Lost 8 | . 1 7 Power 1 | . . 1 Propulsion 2 | . . 2 Utility 1 | . . 1 Weapon 4 | . 1 3 Highest Loss Streak 6 | . 1 6 To Critical Strikes . | . . . Average Backups 10 | 3 9 12 Power 1 | . 1 2 Propulsion . | 1 . . Utility 5 | . 3 8 Weapon 2 | . 3 2 Tool/Special . | . . . Unused Backups 11 | . 1 10 Power 2 | . . 2 Propulsion . | . . . Utility 8 | . . 8 Weapon 1 | . 1 . Tool/Special . | . . . Average Slot Usage (%) 86 | . 98 59 Engine 10 | . 13 3 Treads 16 | . 21 7 Leg 4 | . 6 . Device 3 | . . 10 Storage 13 | . 13 14 Protection 10 | . 13 3 Energy Gun 22 | . 27 12 Ballistic Cannon 3 | . . 8 Peak Build Rating 17 | 5 9 17 Average Rating 9 | 2 7 14 On Entrance 4 | . 5 9 Avg Prop Armor Cover (%) . | . . . Naked Turns . | . . . Heaviest Build 30 | 7 30 30 Greatest Support 40 | 20 40 40 Greatest Overweight (x) 8 | . 1 8 Average Overweight (x) . | . . 3 Largest Inventory Capacity 15 | 5 15 15 Average Capacity 13 | 5 13 15 Most Carried 15 | 5 14 15 Average Carried 10 | 3 9 13 Final Capacity 15 | 5 15 15 Final Carried 14 | 5 14 11 Class Distribution -------------------- 100% | Mutant Dominant Class ---------------- Mutant | -10/Materials Mutant | -10/Subcaves Resources | -11 -10 -10 ----------- Run | Yrd Mat Sub Matter Collected 585 | 250 254 81 Remotely . | . . . Salvage Created 878 | . 655 223 Parts 51 | . 36 15 Haulers Intercepted 1 | . 1 . Recyclers Shooed . | . . . Parts Field Recycled . | . . . Retrieved Matter . | . . . Parts Self-Destructed 3 | . . 3 Prevented . | . . . Parts Restored . | . . . Kills | -11 -10 -10 ------- Run | Yrd Mat Sub Combat Hostiles Destroyed 17 | . 11 6 Melee 1 | . 1 . Guns 13 | . 9 4 Cannons 2 | . . 2 Classes Destroyed 6 | . 5 1 Hauler 1 | . 1 . Operator 1 | . 1 . Watcher 2 | . 2 . Grunt 10 | . 10 . Sentry 1 | . . 1 Subdweller 6 | . 1 5 Best Kill Streak 2 | . 2 2 Combat Bots Only 2 | . 2 2 Max Kills in Single Turn 2 | . 2 1 Gunslinging . | . . . Exploded . | . . . Melee 1 | . 1 . Uniques/NPCs Destroyed . | . . . Combat | -11 -10 -10 -------- Run | Yrd Mat Sub Hostile Shots Fired 128 | . 49 79 Missed 36 | . 13 23 Hits 92 | . 36 56 Projectile 92 | . 36 56 AOE 1 | . . 1 Critical Strikes 2 | . 1 1 Damage Taken 1657 | . 474 1183 Core 361 | . 67 294 Absorbed by Shields . | . . . Redirected to Shielding 50 | . 39 11 Regen/Repaired (Parts) 73 | . 73 . Core Remaining (%) 100 | 100 . . Volleys Fired 72 | . 46 26 Largest 2 | . 2 2 Hottest 90 | . 80 90 Shots Fired 136 | . 88 48 Gun 103 | . 87 16 Cannon 33 | . 1 32 Launcher . | . . . Special . | . . . Kinetic 33 | . 1 32 Thermal 29 | . 19 10 Explosive . | . . . Electromagnetic 74 | . 68 6 Robot Hit Streak 18 | . 18 10 Robot Miss Streak 3 | . 3 3 Penetration Max . | . . . Secondary Targets . | . . . Shots Hit Robots 90 | . 60 30 Core Hits 37 | . 27 10 Critical Kills . | . . . Critical Parts Destroyed . | . . . Critical Strikes 4 | . 3 1 Burn 1 | . . 1 Corrupt 3 | . 3 . Melee Attacks . | . . . Impact . | . . . Slashing . | . . . Piercing . | . . . Sneak Attacks . | . . . Combat Hostiles . | . . . Follow-up Attacks . | . . . Damage Inflicted 1396 | . 905 491 Guns 960 | . 855 105 Cannons 386 | . . 386 Explosions 39 | . 39 . Melee . | . . . Ramming 11 | . 11 . Kinetic 386 | . . 386 Thermal 297 | . 214 83 Explosive . | . . . Electromagnetic 702 | . 680 22 Impact . | . . . Slashing . | . . . Piercing . | . . . Highest Corruption . | . . . Average Corruption . | . . . Corruption Purged . | . . . Corruption Blocked . | . . . Overload Shots . | . . . Overflow Damage 9 | . 9 . Projectiles . | . . . Explosions 9 | . 9 . Melee . | . . . Knockbacks 4 | . . 4 Impact . | . . . Kinetic 4 | . . 4 Secondary . | . . . Self-Inflicted Damage 13 | . 13 . Shots 1 | . 1 . Rammed 6 | . 6 . Targets Rammed 6 | . 6 . Kicked . | . . . Crushed . | . . . Highest Temperature 186 | . 186 . Average Temperature 62 | . 62 . Received Heat Transfer 396 | . 273 123 Siege Activations . | . . . Martial Activations . | . . . Shielding Activations . | . . . Robots Disrupted . | . . . Combat Hostiles . | . . . Robots Corrupted 1 | . 1 . Combat Hostiles 1 | . 1 . Parts Fried 3 | . 3 . Impact Corruptions . | . . . Robots Melted . | . . . Combat Hostiles . | . . . Parts Melted 1 | . . 1 Heat Transferred 747 | . 450 297 Parts Sabotaged . | . . . Parts Stolen . | . . . Parts Stripped . | . . . Power Chain Reactions 1 | . 1 . Alert | -11 -10 -10 ------- Run | Yrd Mat Sub Maximum Alert Level . | . . . Low Security (%) 100 | 100 100 . Level 1 . | . . . Level 2 . | . . . Level 3 . | . . . Level 4 . | . . . Level 5 . | . . . High Security . | . . . Max Security . | . . . Peak Influence 85 | . 85 . Initial . | . . . Average 16 | . 17 . Influence Increases 449 | . 429 20 Destroy 0b10 Robot/C 220 | . 200 20 Destroy 0b10 Robot/NC 20 | . 20 . Destroy Leader 56 | . 56 . Successful Hack 18 | . 18 . Disable Machine 75 | . 75 . Lose Combat Pursuer 60 | . 60 . Influence Decreases 449 | . 429 20 Time Decay 368 | . 348 20 Lost Part 10 | . 10 . Purge Threat 71 | . 71 . Squads Dispatched 1 | . 1 . Investigation 1 | . 1 . Extermination . | . . . Reinforcement . | . . . Assault . | . . . Garrison . | . . . Intercept . | . . . Searches Triggered . | . . . Construction Impeded . | . . . Haulers Reinforced . | . . . Active Scanning Responses . | . . . Cargo Convoy Interrupts . | . . . Stealth | -11 -10 -10 --------- Run | Yrd Mat Sub Distress Signals 1 | . 1 . Communications Jammed . | . . . Distress Signals . | . . . Times Spotted 39 | . 21 18 Peak Tracking Total 9 | . 4 9 Tactical Retreats 3 | . 3 . Traps | -11 -10 -10 ------- Run | Yrd Mat Sub Traps Triggered 1 | . 1 . Indirectly . | . . . Trap Hack Attempts . | . . . Triggered . | . . . Disarmed . | . . . Reprogrammed . | . . . Reused . | . . . Traps Extracted . | . . . Installed . | . . . Triggered . | . . . Machines | -11 -10 -10 ---------- Run | Yrd Mat Sub Machines Disabled 5 | . 5 . Max in Single Turn 1 | . 1 . Machines Repaired . | . . . Machines Dismantled . | . . . Machines Sabotaged . | . . . Overloaded Fab Kills . | . . . Hacking | -11 -10 -10 --------- Run | Yrd Mat Sub Machines Accessed 8 | . 8 . Terminals 7 | . 7 . Fabricators . | . . . Repair Stations 1 | . 1 . Recycling Units . | . . . Scanalyzers . | . . . Garrison Access . | . . . Total Hacks 20 | . 20 . Successful 10 | . 10 . Failed 10 | . 10 . Catastrophic 1 | . 1 . Database Lockouts . | . . . Manual 9 | . 9 . Terminals 18 | . 18 . Fabricators . | . . . Repair Stations 2 | . 2 . Recycling Units . | . . . Scanalyzers . | . . . Garrison Access . | . . . Terminal Hacks 7 | . 7 . Record 2 | . 2 . Prototype ID Bank 1 | . 1 . Unreport Threat 1 | . 1 . Locate Traps 1 | . 1 . Dispatch Records 1 | . 1 . Registered Components 1 | . 1 . Fabricator Hacks . | . . . Repair Station Hacks 2 | . 2 . Scan Component 1 | . 1 . Repair 1 | . 1 . Recycling Unit Hacks . | . . . Scanalyzer . | . . . Garrison Access Hacks . | . . . Unauthorized Hacks 1 | . 1 . Terminals 1 | . 1 . Botnet 1 | . 1 . Fabricators . | . . . Repair Stations . | . . . Recycling Units . | . . . Scanalyzers . | . . . Garrison Access . | . . . Data Cores Recovered 1 | . 1 . Used . | . . . Hacking Detections 7 | . 7 . Full Trace Events . | . . . Feedback Events . | . . . Feedback Blocked . | . . . Robot Schematics Acquired . | . . . Robots Built . | . . . Authchips . | . . . Time . | . . . Total Robot Build Rating . | . . . Part Schematics Acquired . | . . . Parts Built . | . . . Authchips . | . . . Time . | . . . Total Part Build Rating . | . . . Part Studies Acquired . | . . . Parts Repaired 1 | . 1 . Time 26 | . 26 . Parts Recycled . | . . . Recycled Matter . | . . . Retrieved Matter . | . . . Retrieved Components . | . . . Parts Scanalyzed . | . . . Part Schematics Acquired . | . . . Parts Damaged . | . . . Bothacking | -11 -10 -10 ------------ Run | Yrd Mat Sub Used RIF Installer . | . . . Robots Hacked . | . . . Non-combat . | . . . Combat . | . . . Robot Hacks Applied . | . . . Relay Couplers Released . | . . . Fabnet Peak Effective % . | . . . Robots Rewired . | . . . Allies Hacked . | . . . Hacks Repelled . | . . . Allies | -11 -10 -10 -------- Run | Yrd Mat Sub Total Allies . | . . . Largest Group . | . . . Highest-Rated Group . | . . . Highest-Rated Ally . | . . . Total Orders . | . . . Ally Attacks . | . . . Total Damage . | . . . Kills . | . . . Allies Corrupted . | . . . Allies Melted 1 | . . 1 X0-1V1 Amusement Gains 56 | . 6 50 Bad Acts 2 | . . 2 Intel | -11 -10 -10 ------- Run | Yrd Mat Sub Active Infowar (turns) . | . . . Robot Analysis Total . | . . . Derelict Logs Recovered . | . . . Drone Launches . | . . . Drone Recoveries . | . . . Exploration | -11 -10 -10 ------------- Run | Yrd Mat Sub Turns Passed 2912 | 67 1980 865 Spaces Moved 1495 | 54 1178 263 Core 165 | 19 . 146 Treads 978 | . 861 117 Legs 352 | 35 317 . Wheels . | . . . Hover . | . . . Flight . | . . . Fastest Speed 50 | 50 120 160 Average Speed 173 | 95 150 296 Slowest Speed 450 | 120 240 450 Overloaded Moves . | . . . Propulsion Burnouts . | . . . Robots Hopped . | . . . Potential Cave-ins . | . . . Cave-ins Triggered . | . . . Exploration Rate (%) 36 | 3 99 6 Regions Visited 2 Branch Regions 1 Pre-discovered Areas 1 | . . 1 Known Exits Taken . | . . . Unknown Exits Taken 2 | 1 1 . Scrap Searched . | . . . Spaces Dug . | . . . Terrain Destroyed . | . . . Melee . | . . . Projectile . | . . . AOE . | . . . Terrain Rammed . | . . . Walls Destroyed . | . . . Machines Disabled . | . . . Actions | -11 -10 -10 --------- Run | Yrd Mat Sub Total 1667 | 68 1298 301 Wait 42 | 3 37 2 Move 1493 | 53 1177 263 Hop . | . . . Pick Up 23 | 7 15 1 Fast Attach 7 | 3 4 . Attach 8 | 2 1 5 Detach 1 | . . 1 Swap 7 | . 5 2 Drop 8 | . 7 1 Fire 72 | . 46 26 Melee . | . . . Ram . | . . . Kick . | . . . Crush 6 | . 6 . Escape Stasis . | . . . Rewire . | . . . Trap . | . . . Miscellaneous . | . . . Route ------- -11/Scrapyard -10/Materials (discovered 5 exits: [*Mat x3] / [*Min] / [*Sub]) -10/Subcaves (discovered 1 exit: [*Mat]) History --------- Turn | Location | Event 14 | -11/Scrapyard | Discovered new exit (range 15) 68 | -11/Scrapyard | Entered Materials 305 | -10/Materials | Build established: Mutant 386 | -10/Materials | Discovered new exit (range 13) 522 | -10/Materials | Discovered new exit (range 5) 568 | -10/Materials | Derelicts attacked the area 630 | -10/Materials | Discovered new exit (range 7) 927 | -10/Materials | Discovered new exit (range 7) 1145 | -10/Materials | Repaired Lgt. Treads 2029 | -10/Materials | Discovered new exit (range 8) 2041 | -10/Materials | Prayed at D.C.S.S. Altar Unit 2048 | -10/Materials | Entered Subcaves 2066 | -10/Subcaves | Learned location of Zion (-6) 2066 | -10/Subcaves | Met a Zionite searching for "candidates" 2098 | -10/Subcaves | Discovered new exit (range 7) 2228 | -10/Subcaves | Ambushed by swarm of Subdwellers 2228 | -10/Subcaves | Ambushed by Subdwellers from Twisted Machinery 2228 | -10/Subcaves | Ambushed by Subdwellers from Twisted Machinery 2228 | -10/Subcaves | Ambushed by Subdwellers from Twisted Machinery 2242 | -10/Subcaves | Core integrity fell below 50% 2263 | -10/Subcaves | Core integrity fell below 20% 2269 | -10/Subcaves | X0-1V1 rescued you from certain death 2277 | -10/Subcaves | Lost 4 allies 2298 | -10/Subcaves | Lost 6 parts (1p2n1u2w) 2913 | -10/Subcaves | Destroyed by QI-OY1(R) with Subdweller Shrapnel Launcher Last Messages --------------- 02555_ Acquired 47 matter. 02683_ 5Y-SS5(u) tweaks Twisted Machinery. 02842_ X0-1V1: "I had everything to do with that." 02851_ BU-R5J(R) destroyed. 02853_ X0-1V1: "Your inner air conditioner seems to have fallen into disrepair." (-18 heat dissipation) 02858_ Heat dissipation returns to normal. 02862_ EM Pulse Gun destroyed. 02872_ 4V-H5T(R) suffers critical hit (Burn). 02872_ Disposable Heat Sink melted. 02872_ 4V-H5T(R) destroyed. 02876_ H0-9F3(R) affixes Scrap Shield Fragment to Scrap Shield. 02881_ H0-9F3(R) knocked back. 02881_ H0-9F3(R) destroyed. 02902_ Acquired 26 matter. 02907_ Acquired 4 matter. 02913_ X0-1V1 bursts into laughter! Map ----- +----------------------------------------------------+ | ?????????????????????## % ###????????????? | | ????????????????????## #??????????????? | | ?????????????????#### #??????????????? | | ????????????????## ##??????????????? | | ???????????????## ! ##???????????????? | | ???????????????# =*%= ###????????????????? | | ???????????????# !%%! =##??????????????????? | | ??????????????"" & ##%###?????????????????? | | ??????????????#""= ## [ #?????????????????? | | ??????????????###%* ##????????????????? | | ??????????????# *! #????????????????? | | ??????????????# ! # # # ##????????????????? | | ??????????????# =#R #????????????????? | | ??????????????####R ##????????????????? | | ????????????????## % #####?????????????????? | | ????????????????# *R #?????????????????????? | | ???????????????## |%# #????????????????????? | | ???????????????# [###????????????????????? | | ???????????????# ##????????????????????? | | ???????????????# ##???????????????????? | | ???????????????# % #???????????????????? | | ???????????????# % ##???????????????????? | | ???????????????# #????????????????????? | | ???????????????# ! ##???????????????????? | | ???????????????#### %& #???????????????????? | | ??????????????????#@ ##???????????????????? | | ??????????????????## [##???????????????????? | | ??????????????????##* #???????????????????? | | ??????????????????# ##???????????????????? | | ??????????????##### ##??????????????????? | | ??????????????# #??????????????????? | | ??????????????# #??????????????????? | | ??????????????# ######??????????????????? | | ??????????????# #####???????????????????? | | ??????????????# & * #???????????????????? | | ??????????????# !& #???????????????????? | | ??????????????## ## #???????????????????? | | ???????????????# ######?????????????????? | | ???????????????# ################### | | ???????????????# # # ## ## # # | | ???????????????## "" | | ????????????????## ## " | | ?????????????????### #### # # # | | ???????????????????## #??########### ##"" | | ????????????????????###????????????# ##### | | ???????????????????????????????????# #???? | | ???????????????????????????????????#####???? | | ???????????????????????????????????????????? | | ???????????????????????????????????????????? | | ???????????????????????????????????????????? | +----------------------------------------------------+ Best States ------------- Heat Dissipation 25 Energy Generation 10 Energy Capacity 250 Matter Stores 300 Matter Capacity 300 Sight Range 16 Terrain Scan Density 10 Weapon Shielding 33 Evasion (%) 55 Recoil Reduction 2 Item Schematics ----------------- None Robot Schematics ------------------ None Fabricated ------------ Nothing Repaired ---------- Lgt. Treads | 47% | -10/Materials Studied --------- None Alien Tech Used ----------------- None Achievements -------------- Chaos Is Inevitable DATA ERROR: Steam Global Achievement% For Emergencies Only Organ Harvest There's More Where That Came From Challenges ------------ None Game ------ Seed AnalysisDeflectorWarhead Manual? 0 Play Time 00:28:36 Cumulative 154.5 hours Start 2026.06.23 @ 21:46:12 End 2026.06.23 @ 22:13:24 Sessions 1 Manual Loads 0 Difficulty Rogue Special Mode None Game No. 168 Rogue 168 Adventurer 0 Explorer 0 Win Type - Total 4 Types 3/0/1/0/0/0/0/0/0/0 Lore% 36 Gallery% 50 Achievement% 30 Wizard Run 0 Options --------- Layout 1 ASCII 0 Keyboard 0 Movement Numpad Keybinds 0 Fullscreen 1 Font 24/Smallcaps Map View 50x35 Zoom Use 0% Tactical HUD 1 Map Filters NONE Filters NONE Steam 1 RUN: ce9d312d-e8af-41d1-9cc5-211ae87984ef